[Event "Pan-American U20-ch 2023"]
[Site "Volta Redonda"]
[Date "2023.11.11"]
[Round "8.1"]
[White "Reyes Zavaleta, Fabian Ricardo"]
[Black "Flores Quillas, Diego Saul Rodri"]
[Result "0-1"]
[ECO "A62"]
[WhiteElo "2122"]
[BlackElo "2369"]
[Annotator "RC"]
[PlyCount "78"]
[EventDate "2023.10.31"]
[EventType "swiss"]
[EventCountry "BRA"]
[SourceTitle "playchess.com"]
[Source "ChessBase"]
[SourceQuality "1"]
[TimeControl "5400+30"]

1. d4 {[%emt 0:01:52]} Nf6 {[%emt 0:10:03]} 2. c4 {[%emt 0:00:08]} e6 {[%emt 0:00:03]} 3. g3 {[%emt 0:00:14]} c5 {[%emt 0:00:05]} 4. d5 {[%emt 0:00:08]} exd5 {[%emt 0:00:06]} 5. cxd5 {[%emt 0:00:08]} d6 {[%emt 0:00:02]} 6. Nc3 {[%emt 0:00:12]} g6 {[%emt 0:00:03]} 7. Bg2 {[%emt 0:00:11]} Bg7 {[%emt 0:00:03]} 8. Nf3 {[%emt 0:00:10]} O-O {[%emt 0:00:04]} 9. O-O {[%emt 0:00:16]} Re8 {[%emt 0:00:03]} 10. Bf4 {[%emt 0:00:31]} Na6 {[%emt 0:00:18]} 11. Re1 {[%emt 0:00:26]} Bg4 {[%emt 0:00:04]} 12. h3 {[%emt 0:00:29]} Bxf3 {[%emt 0:00:04]} 13. Bxf3 {[%emt 0:00:06]} Nd7 {[%emt 0:00:07]} 14. Rc1 {[%emt 0:02:43]} Ne5 {[%emt 0:00:11]} 15. Bg2 {[%emt 0:00:25]} Nc7 {[%emt 0:00:06]} 16. Ne4 {[%emt 0:02:11]} h6 {[%emt 0:01:13]} 17. g4 {[%emt 0:02:02]} Rb8 {[%emt 0:06:13]} 18. e3 {[%emt 0:05:53]} b5 {[%emt 0:01:28]} 19. b3 {[%emt 0:00:07]} b4 {[%emt 0:05:12]} 20. Bh2 {[%emt 0:06:17]} Nb5 {[%emt 0:01:44]} 21. Rf1 {[%emt 0:01:05]} Qb6 {[%emt 0:03:38]} 22. f4 {[%emt 0:23:54]} Nd7 {[%emt 0:00:05]} 23. f5 {[%emt 0:00:18]} Nc3 {[%emt 0:04:23]} 24. Rxc3 {[%emt 0:01:50]} bxc3 {[%emt 0:00:01]} 25. Nxd6 {[%emt 0:00:13]} Qa6 {[%emt 0:03:20]} 26. fxg6 {[%emt 0:11:51]} fxg6 {[%emt 0:30:37]} 27. Nxe8 {[%emt 0:19:32]} Rxe8 {[%emt 0:00:10]} 28. d6 {[%emt 0:02:00]} Rxe3 {[%emt 0:00:16]} 29. Qd5+ {[%emt 0:00:53]} Kh7 {[%emt 0:00:04]} 30. Be4 {[%emt 0:00:22]} Nf8 {[%emt 0:01:39]} 31. Be5 {[%emt 0:03:46]} c2 {[%emt 0:02:52]} 32. Rc1 {[%emt 0:04:18]} Qe2 {[%emt 0:04:55]} 33. Rxc2 {[%emt 0:03:06]} Qe1+ {[%emt 0:00:52]} 34. Kg2 {[%emt 0:00:09]} Rxe4 {[%emt 0:03:34]} 35. Bxg7 {[%emt 0:00:45]} Ne6 {[%emt 0:03:03]} 36. Be5 {[%emt 0:07:07]} Rxe5 {[%emt 0:00:59]} 37. Qb7+ {[%emt 0:00:17]} Ng7 {[%emt 0:03:07]} 38. d7 {[%emt 0:00:23]} Qd1 {[%emt 0:00:18]} 39. Rf2 {[%emt 0:00:35]} Qd5+ {[%emt 0:01:03]} 0-1

[Event "Pan-American U20-ch 2023"]
[Site "Volta Redonda"]
[Date "2023.11.11"]
[Round "8.2"]
[White "Ibarra, Juan Martin"]
[Black "Tomiello, Lucas Costamilan"]
[Result "0-1"]
[ECO "B33"]
[WhiteElo "2219"]
[BlackElo "2279"]
[Annotator "RC"]
[PlyCount "112"]
[EventDate "2023.10.31"]
[EventType "swiss"]
[EventCountry "BRA"]
[SourceTitle "playchess.com"]
[Source "ChessBase"]
[SourceQuality "1"]
[TimeControl "5400+30"]

1. e4 {[%emt 0:05:54]} c5 {[%emt 0:00:11]} 2. Nf3 {[%emt 0:00:03]} Nc6 {[%emt 0:00:13]} 3. d4 {[%emt 0:00:06]} cxd4 {[%emt 0:00:05]} 4. Nxd4 {[%emt 0:00:02]} Nf6 {[%emt 0:00:13]} 5. Nc3 {[%emt 0:00:04]} e5 {[%emt 0:00:23]} 6. Ndb5 {[%emt 0:00:04]} d6 {[%emt 0:00:10]} 7. Bg5 {[%emt 0:00:07]} a6 {[%emt 0:00:22]} 8. Na3 {[%emt 0:00:01]} b5 {[%emt 0:00:10]} 9. Nab1 {[%emt 0:00:09]} Be7 {[%emt 0:01:18]} 10. Bxf6 {[%emt 0:00:06]} Bxf6 {[%emt 0:00:07]} 11. a4 {[%emt 0:00:05]} b4 {[%emt 0:01:02]} 12. Nd5 {[%emt 0:00:02]} O-O {[%emt 0:01:39]} 13. Bc4 {[%emt 0:00:04]} a5 {[%emt 0:01:58]} 14. O-O {[%emt 0:00:33]} Bg5 {[%emt 0:01:20]} 15. c3 {[%emt 0:00:11]} Be6 {[%emt 0:02:38]} 16. Qd3 {[%emt 0:04:08]} bxc3 {[%emt 0:04:00]} 17. Nbxc3 {[%emt 0:00:21]} Rb8 {[%emt 0:03:52]} 18. Bb5 {[%emt 0:05:04]} Nd4 {[%emt 0:06:37]} 19. Rfd1 {[%emt 0:42:08]} f5 {[%emt 0:09:29]} 20. f3 {[%emt 0:04:58]} fxe4 {[%emt 0:03:45]} 21. fxe4 {[%emt 0:00:09]} Qc8 {[%emt 0:12:40]} 22. Rf1 {[%emt 0:05:06]} Qc5 {[%emt 0:01:05]} 23. Kh1 {[%emt 0:01:33]} Nb3 {[%emt 0:03:54]} 24. Rad1 {[%emt 0:04:08]} Rxf1+ {[%emt 0:07:58]} 25. Rxf1 {[%emt 0:01:09]} Nd2 {[%emt 0:01:09]} 26. Rd1 {[%emt 0:02:14]} Rf8 {[%emt 0:07:16]} 27. h4 {[%emt 0:05:23]} Qf2 {[%emt 0:00:48]} 28. hxg5 {[%emt 0:00:07]} Qh4+ {[%emt 0:00:39]} 29. Kg1 {[%emt 0:00:00]} Qf2+ {[%emt 0:00:29]} 30. Kh1 {[%emt 0:00:08]} Nf3 {[%emt 0:03:32]} 31. Qxf3 {[%emt 0:07:39]} Rxf3 {[%emt 0:01:34]} 32. gxf3 {[%emt 0:00:02]} Qxf3+ {[%emt 0:02:02]} 33. Kg1 {[%emt 0:00:31]} Qg3+ {[%emt 0:01:05]} 34. Kf1 {[%emt 0:00:27]} Bh3+ {[%emt 0:01:19]} 35. Ke2 {[%emt 0:00:01]} Bg4+ {[%emt 0:00:26]} 36. Kd2 {[%emt 0:00:13]} Bxd1 {[%emt 0:00:24]} 37. Kxd1 {[%emt 0:01:09]} Qxg5 {[%emt 0:00:58]} 38. b4 {[%emt 0:00:29]} axb4 {[%emt 0:00:52]} 39. Nxb4 {[%emt 0:00:01]} h5 {[%emt 0:01:54]} 40. a5 {[%emt 0:00:04]} h4 {[%emt 0:01:18]} 41. Bd7 {[%emt 0:01:14]} h3 {[%emt 0:02:48]} 42. Bxh3 {[%emt 0:00:37]} Qh5+ {[%emt 0:00:02]} 43. Kc2 {[%emt 0:00:14]} Qxh3 {[%emt 0:00:02]} 44. a6 {[%emt 0:00:04]} Qg2+ {[%emt 0:02:58]} 45. Kb3 {[%emt 0:00:08]} Qf2 {[%emt 0:00:42]} 46. Nb5 {[%emt 0:00:30]} Qe3+ {[%emt 0:01:40]} 47. Ka4 {[%emt 0:00:45]} Qxe4 {[%emt 0:00:51]} 48. Ka5 {[%emt 0:05:25]} g5 {[%emt 0:02:40]} 49. Kb6 {[%emt 0:00:22]} Qe3+ {[%emt 0:00:52]} 50. Kb7 {[%emt 0:02:37]} Qc5 {[%emt 0:01:17]} 51. a7 {[%emt 0:05:25]} Qxb5+ {[%emt 0:00:20]} 52. Ka8 {[%emt 0:00:14]} g4 {[%emt 0:00:39]} 53. Nc2 {[%emt 0:00:08]} Qc6+ {[%emt 0:00:19]} 54. Kb8 {[%emt 0:00:02]} Qb6+ {[%emt 0:00:05]} 55. Ka8 {[%emt 0:00:04]} Qc7 {[%emt 0:00:16]} 56. Ne3 {[%emt 0:00:07]} Qc8# {[%emt 0:00:05]} 0-1

[Event "Pan-American U20-ch 2023"]
[Site "Volta Redonda"]
[Date "2023.11.11"]
[Round "8.3"]
[White "Soriano Quispe, Ivan Excender"]
[Black "De Siqueira, Luigy Lira"]
[Result "1/2-1/2"]
[ECO "D36"]
[WhiteElo "2214"]
[BlackElo "2179"]
[Annotator "RC"]
[PlyCount "95"]
[EventDate "2023.10.31"]
[EventType "swiss"]
[EventCountry "BRA"]
[SourceTitle "playchess.com"]
[Source "ChessBase"]
[SourceQuality "1"]
[TimeControl "5400+30"]

1. d4 {[%emt 0:10:35]} d5 {[%emt 0:07:25]} 2. c4 {[%emt 0:00:06]} e6 {[%emt 0:00:08]} 3. Nc3 {[%emt 0:00:01]} Nf6 {[%emt 0:00:07]} 4. cxd5 {[%emt 0:00:04]} exd5 {[%emt 0:00:06]} 5. Bg5 {[%emt 0:00:04]} Be7 {[%emt 0:00:26]} 6. e3 {[%emt 0:00:58]} c6 {[%emt 0:00:16]} 7. Qc2 {[%emt 0:00:04]} Nbd7 {[%emt 0:00:13]} 8. Bd3 {[%emt 0:00:07]} O-O {[%emt 0:00:19]} 9. Nf3 {[%emt 0:00:06]} h6 {[%emt 0:00:06]} 10. Bh4 {[%emt 0:01:14]} Re8 {[%emt 0:00:28]} 11. O-O {[%emt 0:00:08]} Ne4 {[%emt 0:00:14]} 12. Bxe7 {[%emt 0:01:09]} Qxe7 {[%emt 0:00:09]} 13. Bxe4 {[%emt 0:04:28]} dxe4 {[%emt 0:00:24]} 14. Nd2 {[%emt 0:00:02]} Nf6 {[%emt 0:00:25]} 15. Nc4 {[%emt 0:14:48]} b6 {[%emt 0:01:06]} 16. Rac1 {[%emt 0:04:03]} Ba6 {[%emt 0:05:20]} 17. Qa4 {[%emt 0:01:05]} Bb7 {[%emt 0:01:32]} 18. Qb3 {[%emt 0:06:05]} Rac8 {[%emt 0:06:09]} 19. Rfd1 {[%emt 0:01:08]} Red8 {[%emt 0:00:29]} 20. Qa3 {[%emt 0:07:00]} Qxa3 {[%emt 0:02:03]} 21. Nxa3 {[%emt 0:00:48]} Ba6 {[%emt 0:01:46]} 22. f3 {[%emt 0:10:25]} Re8 {[%emt 0:08:03]} 23. fxe4 {[%emt 0:06:33]} Nxe4 {[%emt 0:00:10]} 24. Nxe4 {[%emt 0:09:28]} Rxe4 {[%emt 0:00:13]} 25. Kf2 {[%emt 0:00:51]} Re6 {[%emt 0:07:39]} 26. Nc2 {[%emt 0:03:20]} c5 {[%emt 0:04:35]} 27. dxc5 {[%emt 0:02:08]} Rxc5 {[%emt 0:00:47]} 28. Nd4 {[%emt 0:00:32]} Rf6+ {[%emt 0:09:41]} 29. Nf3 {[%emt 0:00:03]} Ra5 {[%emt 0:00:23]} 30. a3 {[%emt 0:00:19]} Bb7 {[%emt 0:02:16]} 31. Rd8+ {[%emt 0:03:19]} Kh7 {[%emt 0:00:08]} 32. Rc4 {[%emt 0:01:52]} g5 {[%emt 0:01:56]} 33. Rd7 {[%emt 0:03:52]} Bd5 {[%emt 0:20:49]} 34. Rd4 {[%emt 0:01:39]} Be6 {[%emt 0:00:33]} 35. R7d6 {[%emt 0:00:01]} Rc5 {[%emt 0:01:32]} 36. Kg3 {[%emt 0:00:53]} Kg7 {[%emt 0:01:10]} 37. h3 {[%emt 0:01:33]} Rc2 {[%emt 0:01:13]} 38. Rd2 {[%emt 0:00:12]} Rxd2 {[%emt 0:01:15]} 39. Rxd2 {[%emt 0:00:08]} Bf5 {[%emt 0:00:22]} 40. Rd5 {[%emt 0:01:17]} Be4 {[%emt 0:02:11]} 41. Rd4 {[%emt 0:00:20]} Bxf3 {[%emt 0:01:28]} 42. gxf3 {[%emt 0:00:06]} Rc6 {[%emt 0:00:18]} 43. h4 {[%emt 0:01:55]} Rc2 {[%emt 0:00:50]} 44. hxg5 {[%emt 0:00:13]} hxg5 {[%emt 0:00:02]} 45. Rb4 {[%emt 0:00:50]} f5 {[%emt 0:01:54]} 46. f4 {[%emt 0:02:47]} Kg6 {[%emt 0:01:14]} 47. fxg5 {[%emt 0:00:38]} Kxg5 {[%emt 0:00:02]} 48. Rb5 {[%emt 0:00:34]} 1/2-1/2

[Event "Pan-American U20-ch 2023"]
[Site "Volta Redonda"]
[Date "2023.11.11"]
[Round "8.5"]
[White "Schnaider, Ilan"]
[Black "Labussiere, Yago"]
[Result "1-0"]
[ECO "B51"]
[WhiteElo "2292"]
[BlackElo "2185"]
[Annotator "RC"]
[PlyCount "103"]
[EventDate "2023.10.31"]
[EventType "swiss"]
[EventCountry "BRA"]
[SourceTitle "playchess.com"]
[Source "ChessBase"]
[SourceQuality "1"]
[TimeControl "5400+30"]

1. e4 {[%emt 0:00:02]} c5 {[%emt 0:02:27]} 2. Nf3 {[%emt 0:00:03]} Nc6 {[%emt 0:00:28]} 3. Bb5 {[%emt 0:00:11]} d6 {[%emt 0:01:27]} 4. O-O {[%emt 0:00:25]} Bd7 {[%emt 0:00:39]} 5. Re1 {[%emt 0:00:12]} a6 {[%emt 0:01:18]} 6. Bxc6 {[%emt 0:00:21]} Bxc6 {[%emt 0:00:56]} 7. d4 {[%emt 0:00:06]} cxd4 {[%emt 0:03:48]} 8. Nxd4 {[%emt 0:00:07]} Rc8 {[%emt 0:13:50]} 9. c4 {[%emt 0:00:18]} Nf6 {[%emt 0:01:19]} 10. Nc3 {[%emt 0:00:21]} e6 {[%emt 0:06:21]} 11. b3 {[%emt 0:02:01]} Be7 {[%emt 0:03:03]} 12. Bb2 {[%emt 0:01:09]} O-O {[%emt 0:02:39]} 13. Qd3 {[%emt 0:04:15]} b6 {[%emt 0:14:06]} 14. Nxc6 {[%emt 0:15:05]} Rxc6 {[%emt 0:00:45]} 15. Qg3 {[%emt 0:00:12]} Qc7 {[%emt 0:11:52]} 16. Rad1 {[%emt 0:02:17]} Qb7 {[%emt 0:05:41]} 17. a4 {[%emt 0:04:19]} Rfc8 {[%emt 0:04:53]} 18. Ne2 {[%emt 0:04:59]} Ne8 {[%emt 0:04:19]} 19. Ba3 {[%emt 0:10:53]} R6c7 {[%emt 0:03:49]} 20. Nd4 {[%emt 0:02:24]} Rd7 {[%emt 0:03:36]} 21. h3 {[%emt 0:04:01]} Rcd8 {[%emt 0:01:01]} 22. b4 {[%emt 0:05:04]} Rc8 {[%emt 0:01:23]} 23. Qd3 {[%emt 0:03:30]} Rdc7 {[%emt 0:02:04]} 24. Rc1 {[%emt 0:00:51]} Nf6 {[%emt 0:01:39]} 25. b5 {[%emt 0:01:00]} Nd7 {[%emt 0:04:02]} 26. Nc6 {[%emt 0:01:52]} Rxc6 {[%emt 0:00:28]} 27. bxc6 {[%emt 0:00:06]} Rxc6 {[%emt 0:01:32]} 28. f4 {[%emt 0:00:57]} Nc5 {[%emt 0:00:21]} 29. Bxc5 {[%emt 0:00:32]} Rxc5 {[%emt 0:00:32]} 30. e5 {[%emt 0:01:04]} dxe5 {[%emt 0:02:04]} 31. fxe5 {[%emt 0:01:50]} Qc6 {[%emt 0:01:48]} 32. Qb3 {[%emt 0:03:25]} Qc7 {[%emt 0:00:29]} 33. Kh1 {[%emt 0:02:03]} g6 {[%emt 0:01:20]} 34. Rb1 {[%emt 0:01:23]} Rc6 {[%emt 0:00:55]} 35. Re4 {[%emt 0:00:27]} Kg7 {[%emt 0:00:34]} 36. Qf3 {[%emt 0:00:32]} Bc5 {[%emt 0:00:30]} 37. Qf6+ {[%emt 0:00:36]} Kg8 {[%emt 0:00:14]} 38. Rd1 {[%emt 0:00:12]} Be7 {[%emt 0:00:17]} 39. Qf3 {[%emt 0:00:45]} Bg5 {[%emt 0:00:57]} 40. Qg3 {[%emt 0:00:30]} Be7 {[%emt 0:00:23]} 41. Rf1 {[%emt 0:00:26]} Bf8 {[%emt 0:00:37]} 42. Ref4 {[%emt 0:01:06]} Rxc4 {[%emt 0:00:32]} 43. Rxf7 {[%emt 0:00:18]} Qxf7 {[%emt 0:00:10]} 44. Rxf7 {[%emt 0:00:01]} Kxf7 {[%emt 0:00:01]} 45. Qf2+ {[%emt 0:00:01]} Kg8 {[%emt 0:01:19]} 46. Qxb6 {[%emt 0:00:01]} Rxa4 {[%emt 0:00:31]} 47. Qxe6+ {[%emt 0:00:02]} Kh8 {[%emt 0:00:19]} 48. Qf6+ {[%emt 0:01:45]} Kg8 {[%emt 0:00:07]} 49. e6 {[%emt 0:00:06]} Bb4 {[%emt 0:01:02]} 50. Qf7+ {[%emt 0:00:05]} Kh8 {[%emt 0:00:07]} 51. Qe8+ {[%emt 0:00:03]} Kg7 {[%emt 0:00:08]} 52. Qxa4 {[%emt 0:00:05]} 1-0

[Event "Pan-American U20-ch 2023"]
[Site "Volta Redonda"]
[Date "2023.11.11"]
[Round "8.6"]
[White "Sathish, Pranav"]
[Black "Filgueiras, Nathan Felipe"]
[Result "1-0"]
[ECO "A06"]
[WhiteElo "2415"]
[BlackElo "2331"]
[Annotator "RC"]
[PlyCount "120"]
[EventDate "2023.10.31"]
[EventType "swiss"]
[EventCountry "BRA"]
[SourceTitle "playchess.com"]
[Source "ChessBase"]
[SourceQuality "1"]
[TimeControl "5400+30"]

1. Nf3 {[%emt 0:00:01]} d5 {[%emt 0:06:10]} 2. b3 {[%emt 0:00:05]} Bg4 {[%emt 0:00:15]} 3. Bb2 {[%emt 0:00:07]} Nd7 {[%emt 0:00:14]} 4. e3 {[%emt 0:00:05]} Ngf6 {[%emt 0:01:58]} 5. h3 {[%emt 0:00:11]} Bh5 {[%emt 0:00:50]} 6. g4 {[%emt 0:00:10]} Bg6 {[%emt 0:00:06]} 7. g5 {[%emt 0:00:04]} Ne4 {[%emt 0:03:05]} 8. d3 {[%emt 0:00:08]} Nd6 {[%emt 0:00:44]} 9. Nh4 {[%emt 0:00:35]} e5 {[%emt 0:04:52]} 10. Nxg6 {[%emt 0:05:05]} hxg6 {[%emt 0:01:11]} 11. Qg4 {[%emt 0:00:49]} Be7 {[%emt 0:09:27]} 12. Bg2 {[%emt 0:00:44]} Bxg5 {[%emt 0:10:04]} 13. Bxd5 {[%emt 0:00:03]} Qe7 {[%emt 0:01:01]} 14. Ba3 {[%emt 0:12:14]} O-O-O {[%emt 0:19:05]} 15. Qg2 {[%emt 0:02:27]} Qf6 {[%emt 0:11:35]} 16. Nd2 {[%emt 0:18:20]} Bh4 {[%emt 0:06:20]} 17. Bxd6 {[%emt 0:03:40]} Qxd6 {[%emt 0:00:24]} 18. Bxb7+ {[%emt 0:00:09]} Kb8 {[%emt 0:00:07]} 19. O-O-O {[%emt 0:00:19]} Qb4 {[%emt 0:02:58]} 20. Bd5 {[%emt 0:01:37]} Nb6 {[%emt 0:02:13]} 21. Bc4 {[%emt 0:04:01]} Be7 {[%emt 0:01:54]} 22. Bxf7 {[%emt 0:04:39]} Qc3 {[%emt 0:06:30]} 23. Nb1 {[%emt 0:00:51]} Qa1 {[%emt 0:00:02]} 24. Kd2 {[%emt 0:14:55]} Qxa2 {[%emt 0:03:01]} 25. Rc1 {[%emt 0:00:23]} Rhf8 {[%emt 0:00:48]} 26. Bxg6 {[%emt 0:00:20]} Bb4+ {[%emt 0:04:46]} 27. Ke2 {[%emt 0:00:07]} Rd5 {[%emt 0:00:59]} 28. Qe4 {[%emt 0:03:22]} a5 {[%emt 0:01:39]} 29. Rhd1 {[%emt 0:04:11]} Rc5 {[%emt 0:01:04]} 30. d4 {[%emt 0:00:07]} exd4 {[%emt 0:00:08]} 31. Rxd4 {[%emt 0:00:25]} Qb2 {[%emt 0:00:47]} 32. Rcd1 {[%emt 0:00:12]} Ka7 {[%emt 0:00:20]} 33. Nd2 {[%emt 0:02:25]} Bc3 {[%emt 0:01:18]} 34. Rb1 {[%emt 0:02:34]} Qa2 {[%emt 0:00:41]} 35. Qe7 {[%emt 0:00:11]} Bxd4 {[%emt 0:00:37]} 36. Qxf8 {[%emt 0:00:43]} Qa3 {[%emt 0:00:39]} 37. Nc4 {[%emt 0:02:07]} Qb4 {[%emt 0:00:23]} 38. Be4 {[%emt 0:00:40]} Rxc4 {[%emt 0:00:17]} 39. Qxb4 {[%emt 0:00:17]} Rxb4 {[%emt 0:00:14]} 40. exd4 {[%emt 0:00:03]} Rxd4 {[%emt 0:00:11]} 41. Ke3 {[%emt 0:00:08]} Rd6 {[%emt 0:00:35]} 42. Ra1 {[%emt 0:00:22]} a4 {[%emt 0:00:10]} 43. bxa4 {[%emt 0:01:09]} Nc4+ {[%emt 0:00:02]} 44. Ke2 {[%emt 0:00:12]} Re6 {[%emt 0:00:50]} 45. Kd3 {[%emt 0:00:11]} Nd6 {[%emt 0:00:19]} 46. Bd5 {[%emt 0:00:32]} Rh6 {[%emt 0:00:08]} 47. Bg2 {[%emt 0:00:23]} Rf6 {[%emt 0:00:11]} 48. Rf1 {[%emt 0:00:42]} Kb6 {[%emt 0:00:16]} 49. f4 {[%emt 0:02:49]} Kc5 {[%emt 0:02:00]} 50. Be4 {[%emt 0:00:38]} Rh6 {[%emt 0:00:36]} 51. Rf3 {[%emt 0:00:56]} Re6 {[%emt 0:00:14]} 52. Bh7 {[%emt 0:00:45]} Rh6 {[%emt 0:00:50]} 53. Bg8 {[%emt 0:00:13]} Nf5 {[%emt 0:00:29]} 54. Ke4 {[%emt 0:00:14]} Nd6+ {[%emt 0:00:08]} 55. Ke5 {[%emt 0:00:19]} Kb4 {[%emt 0:01:07]} 56. Bb3 {[%emt 0:01:38]} Rf6 {[%emt 0:00:01]} 57. f5 {[%emt 0:00:29]} Rh6 {[%emt 0:00:46]} 58. Be6 {[%emt 0:00:30]} Rh4 {[%emt 0:01:15]} 59. Rf4+ {[%emt 0:01:13]} Rxf4 {[%emt 0:00:06]} 60. Kxf4 {[%emt 0:00:02]} Kxa4 {[%emt 0:01:30]} 1-0

[Event "Pan-American U20-ch 2023"]
[Site "Volta Redonda"]
[Date "2023.11.11"]
[Round "9.1"]
[White "Oro, Faustino"]
[Black "Flores Quillas, Diego Saul Rodri"]
[Result "0-1"]
[ECO "E60"]
[WhiteElo "2356"]
[BlackElo "2369"]
[Annotator "RC"]
[PlyCount "104"]
[EventDate "2023.10.31"]
[EventType "swiss"]
[EventCountry "BRA"]
[SourceTitle "playchess.com"]
[Source "ChessBase"]
[SourceQuality "1"]
[TimeControl "5400+30"]

1. Nf3 {[%emt 0:00:02]} c5 {[%emt 0:06:44]} 2. b3 {[%emt 0:00:05]} d6 {[%emt 0:01:37]} 3. c4 {[%emt 0:04:46]} Nf6 {[%emt 0:00:59]} 4. d4 {[%emt 0:02:34]} cxd4 {[%emt 0:00:57]} 5. Nxd4 {[%emt 0:00:21]} g6 {[%emt 0:04:56]} 6. e3 {[%emt 0:00:56]} Bg7 {[%emt 0:00:13]} 7. Bb2 {[%emt 0:00:43]} O-O {[%emt 0:00:22]} 8. Be2 {[%emt 0:01:00]} Nc6 {[%emt 0:02:08]} 9. O-O {[%emt 0:00:29]} Bd7 {[%emt 0:00:04]} 10. Nd2 {[%emt 0:00:58]} Rc8 {[%emt 0:00:37]} 11. Bf3 {[%emt 0:03:30]} a6 {[%emt 0:01:26]} 12. Nxc6 {[%emt 0:03:20]} Bxc6 {[%emt 0:02:37]} 13. Qe2 {[%emt 0:02:49]} a5 {[%emt 0:02:43]} 14. Rfd1 {[%emt 0:01:17]} Qb6 {[%emt 0:00:45]} 15. Bd4 {[%emt 0:10:17]} Qa6 {[%emt 0:00:05]} 16. Bxc6 {[%emt 0:00:16]} bxc6 {[%emt 0:00:13]} 17. Nf3 {[%emt 0:00:14]} Rfe8 {[%emt 0:01:03]} 18. Qc2 {[%emt 0:01:19]} Rb8 {[%emt 0:04:05]} 19. Rab1 {[%emt 0:00:37]} Rb4 {[%emt 0:07:27]} 20. Bc3 {[%emt 0:01:49]} Rb7 {[%emt 0:00:08]} 21. e4 {[%emt 0:10:30]} a4 {[%emt 0:03:11]} 22. e5 {[%emt 0:01:09]} axb3 {[%emt 0:00:15]} 23. axb3 {[%emt 0:00:01]} dxe5 {[%emt 0:00:07]} 24. Bxe5 {[%emt 0:00:14]} c5 {[%emt 0:02:01]} 25. h3 {[%emt 0:01:27]} Qc6 {[%emt 0:00:08]} 26. Rd3 {[%emt 0:01:05]} Rd7 {[%emt 0:04:40]} 27. Re3 {[%emt 0:03:12]} Bh6 {[%emt 0:10:38]} 28. Re2 {[%emt 0:01:00]} Rb7 {[%emt 0:00:08]} 29. Rbe1 {[%emt 0:02:24]} Nh5 {[%emt 0:02:39]} 30. Nh2 {[%emt 0:07:01]} Nf4 {[%emt 0:14:23]} 31. Bxf4 {[%emt 0:00:07]} Bxf4 {[%emt 0:00:01]} 32. Ng4 {[%emt 0:00:30]} h5 {[%emt 0:00:26]} 33. Ne5 {[%emt 0:00:17]} Bxe5 {[%emt 0:00:04]} 34. Rxe5 {[%emt 0:41:11]} e6 {[%emt 0:00:31]} 35. R1e3 {[%emt 0:00:00]} Qd6 {[%emt 0:01:09]} 36. Rg5 {[%emt 0:00:00]} Rd8 {[%emt 0:00:44]} 37. Qe4 {[%emt 0:00:00]} Ra7 {[%emt 0:28:46]} 38. Reg3 {[%emt 0:00:00]} Ra1+ {[%emt 0:00:00]} 39. Kh2 {[%emt 0:00:00]} Kf8 {[%emt 0:00:00]} 40. Qe5 {[%emt 0:00:00]} Qxe5 {[%emt 0:00:00]} 41. Rxe5 {[%emt 0:00:00]} Rdd1 {[%emt 0:00:00]} 42. Rge3 {[%emt 0:00:00]} h4 {[%emt 0:00:00]} 43. g3 {[%emt 0:00:00]} Rh1+ {[%emt 0:00:00]} 44. Kg2 {[%emt 0:00:00]} Rag1+ {[%emt 0:00:00]} 45. Kf3 {[%emt 0:00:00]} Rxh3 {[%emt 0:00:00]} 46. Kg4 {[%emt 0:00:00]} Rh2 {[%emt 0:00:00]} 47. Rxc5 {[%emt 0:00:00]} Rxf2 {[%emt 0:00:00]} 48. Kxh4 {[%emt 0:00:00]} Kg7 {[%emt 0:00:00]} 49. Kg4 {[%emt 0:00:00]} Kh6 {[%emt 0:00:00]} 50. Rf3 {[%emt 0:00:00]} f5+ {[%emt 0:00:00]} 51. Kf4 {[%emt 0:00:00]} Re2 {[%emt 0:00:00]} 52. Re3 {[%emt 0:00:00]} Rf1+ {[%emt 0:00:00]} 0-1

[Event "Pan-American U20-ch 2023"]
[Site "Volta Redonda"]
[Date "2023.11.11"]
[Round "9.2"]
[White "Tomiello, Lucas Costamilan"]
[Black "Soriano Quispe, Ivan Excender"]
[Result "1-0"]
[ECO "C77"]
[WhiteElo "2279"]
[BlackElo "2214"]
[Annotator "RC"]
[PlyCount "85"]
[EventDate "2023.10.31"]
[EventType "swiss"]
[EventCountry "BRA"]
[SourceTitle "playchess.com"]
[Source "ChessBase"]
[SourceQuality "1"]
[TimeControl "5400+30"]

1. e4 {[%emt 0:00:05]} e5 {[%emt 0:01:21]} 2. Nf3 {[%emt 0:00:10]} Nc6 {[%emt 0:00:05]} 3. Bb5 {[%emt 0:00:23]} a6 {[%emt 0:00:04]} 4. Ba4 {[%emt 0:00:11]} Nf6 {[%emt 0:00:04]} 5. d3 {[%emt 0:01:05]} d6 {[%emt 0:00:36]} 6. c3 {[%emt 0:00:39]} g6 {[%emt 0:00:10]} 7. O-O {[%emt 0:00:22]} Bg7 {[%emt 0:00:04]} 8. Re1 {[%emt 0:00:21]} O-O {[%emt 0:00:29]} 9. Nbd2 {[%emt 0:00:24]} Nd7 {[%emt 0:00:21]} 10. Nf1 {[%emt 0:01:34]} Nc5 {[%emt 0:00:06]} 11. Bc2 {[%emt 0:00:15]} Ne6 {[%emt 0:00:10]} 12. Ng3 {[%emt 0:02:08]} Qf6 {[%emt 0:00:11]} 13. Be3 {[%emt 0:03:54]} Nf4 {[%emt 0:00:16]} 14. h3 {[%emt 0:01:11]} h5 {[%emt 0:00:05]} 15. d4 {[%emt 0:02:28]} h4 {[%emt 0:00:06]} 16. Nf1 {[%emt 0:00:19]} Bd7 {[%emt 0:05:28]} 17. dxe5 {[%emt 0:04:43]} Nxe5 {[%emt 0:01:40]} 18. Nxe5 {[%emt 0:01:42]} Qxe5 {[%emt 0:00:20]} 19. Nh2 {[%emt 0:03:13]} Qg5 {[%emt 0:27:44]} 20. Qf3 {[%emt 0:01:32]} Be5 {[%emt 0:00:28]} 21. Kh1 {[%emt 0:01:45]} Qf6 {[%emt 0:03:44]} 22. Rad1 {[%emt 0:03:37]} Rad8 {[%emt 0:05:42]} 23. Bb3 {[%emt 0:06:57]} Kg7 {[%emt 0:05:15]} 24. Rd2 {[%emt 0:05:27]} Rh8 {[%emt 0:11:32]} 25. Qd1 {[%emt 0:04:21]} Qg5 {[%emt 0:05:28]} 26. Rg1 {[%emt 0:01:14]} Bc6 {[%emt 0:06:43]} 27. Rd4 {[%emt 0:12:13]} Rde8 {[%emt 0:05:53]} 28. Qd2 {[%emt 0:02:07]} Qf6 {[%emt 0:08:08]} 29. Ng4 {[%emt 0:01:59]} Qg5 {[%emt 0:00:02]} 30. Bd5 {[%emt 0:03:23]} Bd7 {[%emt 0:02:59]} 31. Nxe5 {[%emt 0:01:46]} dxe5 {[%emt 0:00:19]} 32. Bxf7 {[%emt 0:06:37]} exd4 {[%emt 0:00:38]} 33. Bxf4 {[%emt 0:00:13]} dxc3 {[%emt 0:01:19]} 34. Qxd7 {[%emt 0:06:35]} Re7 {[%emt 0:00:54]} 35. Qd4+ {[%emt 0:00:21]} Qf6 {[%emt 0:00:04]} 36. e5 {[%emt 0:00:26]} Qb6 {[%emt 0:00:03]} 37. Qxb6 {[%emt 0:00:21]} cxb6 {[%emt 0:00:03]} 38. e6 {[%emt 0:00:13]} Rd8 {[%emt 0:00:42]} 39. bxc3 {[%emt 0:00:28]} Rd5 {[%emt 0:00:17]} 40. Be3 {[%emt 0:00:23]} b5 {[%emt 0:00:07]} 41. Bd4+ {[%emt 0:00:05]} Kf8 {[%emt 0:00:18]} 42. Rd1 {[%emt 0:02:42]} b4 {[%emt 0:00:23]} 43. Bg7+ {[%emt 0:00:33]} 1-0